fUSD/lending_fUSD_20240726
["ID","MTS","AMOUNT","RATE_DAILY","PERIOD"]
[333256184,1721993444086,-500.0,0.00010999,2]
[333256185,1721993444096,-500.0,0.00010999,2]
[333256186,1721993444107,-500.0,0.00010999,2]
[333256187,1721993444117,-500.0,0.00010999,2]
[333256188,1721993444127,-500.0,0.00010999,2]
[333256189,1721993444138,-500.0,0.00010999,2]
[333256191,1721993444148,-500.0,0.00010999,2]
[333256193,1721993444159,-500.0,0.00010999,2]
[333256194,1721993444171,-500.0,0.00010999,2]
[333256195,1721993444181,-500.0,0.00010999,2]
[333256196,1721993444192,-500.0,0.00010999,2]
[333256197,1721993444204,-500.0,0.00010999,2]
[333256198,1721993444217,-500.0,0.00010999,2]
[333256199,1721993444228,-500.0,0.00010999,2]
[333256200,1721993444240,-500.0,0.00010999,2]
[333256201,1721993444251,-500.0,0.00010999,2]
[333256202,1721993444582,-500.0,0.00010999,2]
[333256203,1721993444599,-500.0,0.00010999,2]
[333256204,1721993444608,-500.0,0.00010999,2]
[333256205,1721993444618,-500.0,0.00010999,2]
[333256206,1721993444628,-500.0,0.00010999,2]
[333256207,1721993444638,-500.0,0.00010999,2]
[333256208,1721993444647,-500.0,0.00010999,2]
[333256209,1721993444657,-500.0,0.00010999,2]
[333256210,1721993444667,-4490.63369208,0.00010999,2]
[333256211,1721993444676,-500.0,0.00010999,2]
[333256212,1721993444686,-500.0,0.00010999,2]
[333256213,1721993444696,-500.0,0.00010999,2]
[333256214,1721993444706,-500.0,0.00010999,2]
[333256215,1721993444716,-500.0,0.00010999,2]
[333256216,1721993444725,-212.64,0.00010999,2]
[333256217,1721993444738,-500.0,0.00010999,2]
[333256218,1721993444748,-500.0,0.00010999,2]
[333256219,1721993444757,-500.0,0.00010999,2]
[333256220,1721993444767,-500.0,0.00010999,2]
[333256221,1721993444776,-338.85897268,0.00010999,2]
[333256222,1721993444786,-500.0,0.00010999,2]
[333256223,1721993444795,-500.0,0.00010999,2]
[333256224,1721993444805,-500.0,0.00010999,2]
[333256225,1721993444814,-500.0,0.00010999,2]
[333256226,1721993444824,-500.0,0.00010999,2]
[333256227,1721993444834,-500.0,0.00010999,2]
[333256228,1721993444843,-500.0,0.00010999,2]
[333256229,1721993444852,-500.0,0.00010999,2]
[333256230,1721993444861,-500.0,0.00010999,2]
[333256231,1721993444871,-500.0,0.00010999,2]
[333256232,1721993444880,-500.0,0.00010999,2]
[333256233,1721993444890,-500.0,0.00010999,2]
[333256234,1721993444899,-500.0,0.00010999,2]
[333256235,1721993444908,-500.0,0.00010999,2]
[333256236,1721993444918,-500.0,0.00010999,2]
[333256237,1721993444927,-500.0,0.00010999,2]
[333256238,1721993444937,-500.0,0.00010999,2]
[333256239,1721993444946,-500.0,0.00010999,2]
[333256240,1721993444957,-500.0,0.00010999,2]
[333256241,1721993444966,-222.3625254,0.00010999,2]
[333256242,1721993444975,-500.0,0.00010999,2]
[333256243,1721993444985,-500.0,0.00010999,2]
[333256244,1721993444994,-335.4681348,0.00010999,2]
[333256245,1721993445003,-500.0,0.00010999,2]
[333256246,1721993445013,-246.66854677,0.00010999,2]
[333256247,1721993445023,-500.0,0.00010999,2]
[333256248,1721993445032,-522.59726479,0.00010999,2]
[333256249,1721993445042,-516.75910365,0.00010999,2]
[333256250,1721993445052,-525.73100847,0.00010999,2]
[333256251,1721993445061,-500.0,0.00010999,2]
[333256252,1721993445071,-624.5,0.00010999,2]
[333256253,1721993445081,-500.0,0.00010999,2]
[333256254,1721993445091,-500.0,0.00010999,2]
[333256255,1721993445100,-500.0,0.00010999,2]
[333256256,1721993445110,-500.0,0.00010999,2]
[333256257,1721993445119,-506.955342,0.00010999,2]
[333256258,1721993445129,-500.0,0.00010999,2]
[333256259,1721993445138,-470.10250196,0.00010999,2]
[333256260,1721993445148,-164918.28383002,0.00011,2]
[333256261,1721993445158,-66335.40259555,0.00011,2]
[333256262,1721993445171,-8479.63585047,0.00011,2]
[333256263,1721993445183,-3606.14856082,0.00011,2]
[333256264,1721993445195,-628.210864,0.00011,2]
[333256265,1721993445213,-707.0740541,0.00011,2]
[333256266,1721993445224,-657.39,0.00011,2]
[333256280,1721993446037,-900.0,0.000101,3]
[333256281,1721993446047,-1200.0,0.000102,3]
[333256283,1721993446056,-5362.43495099,0.00011,2]
[333256285,1721993446523,-3691.70451421,0.00011,2]
[333256286,1721993446664,-2604.7579682,0.00011,2]
[333256287,1721993446675,-724.12012856,0.00011,2]
[333256288,1721993446687,-943.31862009,0.00011,2]
[333256289,1721993446697,-1283.8450912,0.00011,2]
[333256290,1721993446710,-6952.59621588,0.00011,2]
[333256291,1721993446722,-114965.60812519,0.00011,2]
[333256292,1721993446733,-734.01641473,0.00011,2]
[333256293,1721993482615,269.65,0.0001337,30]
[333256317,1721993789977,1000.0,0.00018,120]
[333256319,1721993877022,2018.95990675,8e-05,7]
[333256322,1721994250012,247.17,0.0001337,30]
[333256344,1721994617951,-209.16,8.219e-05,2]
[333256345,1721994617974,-1000.0,8.411e-05,2]
[333256346,1721994617996,-1924.45221331,8.411e-05,2]
[333256347,1721994618017,-2290.0,8.411e-05,2]
[333256348,1721994618040,-300.0,8.411e-05,2]
[333256349,1721994618062,-99400.04559102,8.412e-05,2]
[333256351,1721994632087,-355.41834579,9.252e-05,2]
[333256352,1721994632098,-64.58165421,9.252e-05,2]
[333256353,1721994632108,-250.0,9.44e-05,2]
[333256354,1721994632117,-250.0,9.442e-05,2]
[333256355,1721994632127,-606.73950388,9.471e-05,2]
[333256356,1721994632143,-500.0,9.471e-05,2]
[333256357,1721994632155,-1653.10493737,9.471e-05,2]
[333256358,1721994632166,-4300.0,9.471e-05,2]
[333256359,1721994632178,-9415.48163286,9.471e-05,2]
[333256360,1721994632199,-3321.56566358,9.471e-05,2]
[333256361,1721994632211,-2300.0,9.471e-05,2]
[333256362,1721994632222,-1803.10826231,9.471e-05,2]
[333256363,1721994632232,-150.0,9.479e-05,2]
[333256364,1721994632241,-818.76,9.506e-05,2]
[333256365,1721994632251,-289.9,9.506e-05,2]
[333256366,1721994632261,-256.59,9.519e-05,2]
[333256367,1721994632271,-1868.39,9.567e-05,2]
[333256368,1721994632281,-500.0,9.57e-05,2]
[333256369,1721994632290,-200.0,9.595e-05,2]
[333256370,1721994632300,-1173.51,9.67e-05,2]
[333256371,1721994632309,-150.99,9.733e-05,2]
[333256372,1721994632319,-1000.0,9.799e-05,2]
[333256373,1721994632329,-499.99,9.799e-05,2]
[333256374,1721994632339,-1300.0,9.9e-05,3]
[333256375,1721994632349,-150.0,9.908e-05,2]
[333256376,1721994632359,-1250.0,0.0001,2]
[333256377,1721994632368,-2600.0,0.0001,3]
[333256378,1721994632378,-3900.0,0.000101,3]
[333256379,1721994632388,-587.0,0.00010177,2]
[333256380,1721994632397,-150.0,0.00010199,2]
[333256381,1721994632407,-5200.0,0.000102,3]
[333256382,1721994632416,-6500.0,0.000103,3]
[333256383,1721994632426,-1300.0,0.000104,3]
[333256384,1721994632435,-209.16,0.00010449,2]
[333256385,1721994632445,-1300.0,0.000105,3]
[333256386,1721994632458,-1300.0,0.000106,3]
[333256387,1721994632467,-1300.0,0.000107,3]
[333256388,1721994632480,-189.3426765,0.0001078,2]
[333256389,1721994632489,-1489.0,0.000108,3]
[333256390,1721994632499,-12011.61,0.000108,2]
[333256391,1721994632508,-2257.0,0.0001089,2]
[333256392,1721994632518,-20620.13716769,0.000109,2]
[333256394,1721994632527,-500.0,0.00010911,2]
[333256396,1721994632536,-500.0,0.00010912,2]
[333256398,1721994632547,-200.0,0.00010959,2]
[333256400,1721994632557,-4700.99006148,0.00010988,2]
[333256402,1721994632566,-10297.21,0.0001099,2]
[333256404,1721994632576,-150.0,0.00010996,2]
[333256406,1721994632585,-2422.0,0.00010996,2]
[333256408,1721994632594,-423.0,0.00010996,2]
[333256410,1721994632603,-320.815,0.00010996,2]
[333256412,1721994632612,-508.72,0.00010996,2]
[333256413,1721994632622,-191.0,0.00010996,2]
[333256415,1721994632631,-249.0,0.00010996,2]
[333256417,1721994632641,-11824.0,0.00010999,2]
[333256419,1721994632651,-500.0,0.00010999,2]
[333256421,1721994632660,-500.0,0.00010999,2]
[333256423,1721994632670,-252.48,0.00010999,2]
[333256425,1721994632678,-376.80344971,0.00010999,2]
[333256427,1721994632688,-478.85529244,0.00010999,2]
[333256429,1721994632697,-500.0,0.00010999,2]
[333256431,1721994632707,-500.0,0.00010999,2]
[333256433,1721994632721,-166.74681867,0.00010999,2]
[333256435,1721994632731,-521.82541979,0.00010999,2]
[333256437,1721994632741,-179.92927884,0.00010999,2]
[333256439,1721994632750,-289.81038929,0.00010999,2]
[333256441,1721994632760,-500.0,0.00010999,2]
[333256443,1721994632770,-231.25609714,0.00010999,2]
[333256445,1721994632779,-220682.05442457,0.00011,2]
[333256447,1721994632793,-52448.4532313,0.00011,2]
[333256449,1721994632805,-2083.30719209,0.00011,2]
[333256451,1721994632816,-327.69069563,0.00011,2]
[333256454,1721994632829,-676.1769388,0.00011,2]
[333256456,1721994632841,-761.27446212,0.00011,2]
[333256478,1721994633059,-1400.0,0.00011,2]
[333256548,1721994638150,-250.0,0.00010959,2]
[333256549,1721994638160,-486.38,0.00010959,2]
[333256550,1721994638170,-81766.59612161,0.00011,2]
[333256551,1721994638182,-858.87583117,0.00011,2]
[333256552,1721994638204,-300.0,0.00011,2]
[333256553,1721994638215,-347.24472011,0.00011,2]
[333256554,1721994638260,-19074.73857867,0.00011,2]
[333256555,1721994638314,-1202.01693341,0.00011,2]
[333256556,1721994638369,-11129.9312,0.00011,2]
[333256557,1721994638380,-421.78588728,0.00011,2]
[333256558,1721994640289,-1145.49596646,0.00011,2]
[333256559,1721994640342,-391.951146,0.00011,2]
[333256560,1721994640449,-1458.91842534,0.00011,2]
[333256561,1721994640504,-4125.98200796,0.00011,2]
[333256562,1721994640658,-2099.15609751,0.00011,2]
[333256563,1721994640670,-998.486475,0.00011,2]
[333256564,1721994640714,-2925.98626232,0.00011,2]
[333256565,1721994640725,-602.43099611,0.00011,2]
[333256571,1721994643220,-1377.53454,0.00011,2]
[333256572,1721994643269,-31392.78696447,0.00011,2]
[333256573,1721994643278,-985367.76610991,0.00011,2]
[333256574,1721994643323,-342.58771387,0.00011,2]
[333256575,1721994643376,-1962.37308283,0.00011,2]
[333256576,1721994643430,-3000.00002,0.00011,2]
[333256577,1721994643442,-20120.85188452,0.00011,2]
[333256578,1721994643453,-2248.95674392,0.00011,2]
[333256579,1721994643468,-1719539.21208438,0.00011,2]
[333256580,1721994643479,-6666.1,0.00011,2]
[333256581,1721994643490,-8823.99346952,0.00011,2]
[333256582,1721994643501,-6182.23250689,0.00011,2]
[333256583,1721994643511,-661.66608519,0.00011,2]
[333256584,1721994643523,-15786.04645497,0.00011,2]
[333256585,1721994643590,-1625.64402695,0.00011,2]
[333256597,1721994646156,-336.66,0.00011,2]
[333256633,1721994646519,-337.66996,0.00011,2]
[333256635,1721994646531,-690.90239874,0.00011,2]
[333256637,1721994646541,-530.6,0.00011,2]
[333256639,1721994646552,-782.42653634,0.00011,2]
[333256641,1721994646563,-3929.113636,0.00011,2]
[333256682,1721994647728,-313.354957,0.00011,2]
[333256683,1721994733967,5100.0,0.00015,30]
[333256684,1721994760306,226.57,0.0001337,30]
[333256726,1721995564795,207.68,0.0001337,30]
[333256730,1721995832669,-214.4,8.219e-05,2]
[333256731,1721995832679,-35.6,8.22e-05,2]
[333256732,1721995832773,-117.66776432,8.22e-05,2]
[333256733,1721995832783,-230.30038643,9e-05,2]
[333256734,1721995832795,-309.68502718,9e-05,2]
[333256735,1721995832805,-250.0,9.819e-05,2]
[333256736,1721995832814,-2184.58205858,9.829e-05,2]
[333256737,1721995832826,-919.70999,9.829e-05,2]
[333256738,1721995832837,-704.92261432,9.829e-05,2]
[333256739,1721995832848,-2332.32978955,9.829e-05,2]
[333256740,1721995832860,-713.07366266,9.829e-05,2]
[333256741,1721995832871,-893.59727248,9.829e-05,2]
[333256742,1721995832883,-3164.75000067,9.829e-05,2]
[333256743,1721995832962,-404.4999995,9.829e-05,2]
[333256744,1721995832973,-500.0,9.829e-05,2]
[333256752,1721995833310,-6607.57461224,9.829e-05,2]
[333256753,1721995833320,-3527.68,9.949e-05,2]
[333256754,1721995833332,-3250.0371,0.0001,2]
[333256755,1721995833342,-1250.0,0.0001,2]
[333256756,1721995833351,-461.1647,0.000101,2]
[333256757,1721995833361,-1000.0,0.00010384,2]
[333256758,1721995833577,-214.4,0.00010466,2]
[333256759,1721995833594,-696.35,0.00010467,2]
[333256760,1721995833604,-617.9493,0.00010752,2]
[333256761,1721995833613,-1180.3928,0.00010752,2]
[333256762,1721995833623,-464.3666052,0.00010752,2]
[333256763,1721995833634,-464.36660518,0.00010762,2]
[333256764,1721995833643,-2540.36423253,0.00010762,2]
[333256765,1721995833653,-464.36660518,0.00010771,2]
[333256766,1721995833662,-3637.805905,0.00010772,2]
[333256767,1721995833674,-7883.194095,0.00010772,2]
[333256768,1721995833684,-464.36660518,0.00010781,2]
[333256769,1721995833693,-165.76127034,0.00010781,2]
[333256770,1721995833703,-464.36660518,0.0001079,2]
[333256771,1721995833712,-150.0,0.00010838,2]
[333256772,1721995833722,-549.74133719,0.00010847,2]
[333256773,1721995833732,-17838.08200391,0.00010849,2]
[333256774,1721995833741,-549.74133719,0.0001085,2]
[333256775,1721995833751,-32550.66871358,0.00010851,2]
[333256776,1721995833762,-3406.9084682,0.00010851,2]
[333256777,1721995834274,-1257.21841237,0.00010851,2]
[333256778,1721995834285,-11774.88911757,0.00010851,2]
[333256779,1721995834297,-10583.75706558,0.00010851,2]
[333256780,1721995834319,-18535.72500001,0.00010851,2]
[333256795,1721995838362,-2515.47398675,0.00010851,2]
[333256798,1721995838418,-7361.13473056,0.00010851,2]
[333256799,1721995838430,-792.29140115,0.00010851,2]
[333256800,1721995838470,-1737.50497,0.00010851,2]
[333256801,1721995838648,-387663.31806497,0.00010851,2]
[333256802,1721995838657,-422.41934794,0.00010852,2]
[333256803,1721995838667,-17838.08200391,0.00010853,2]
[333256804,1721995838676,-195.31357051,0.00010853,2]
[333256805,1721995838685,-345.0959338,0.00010863,2]
[333256807,1721995838694,-2680.12073323,0.00010863,2]
[333256809,1721995838703,-849.72545014,0.00010866,2]
[333256811,1721995838713,-345.0959338,0.00010867,2]
[333256813,1721995838722,-101391.566957,0.00010868,2]
[333256815,1721995838731,-101391.566957,0.00010869,2]
[333256817,1721995838741,-549.74133719,0.0001087,2]
[333256819,1721995838751,-195.31357051,0.00010871,2]
[333256820,1721995838760,-101391.566957,0.00010874,2]
[333256822,1721995838769,-345.0959338,0.00010875,2]
[333256824,1721995838779,-422.41934794,0.00010876,2]
[333256826,1721995838788,-17838.08200391,0.00010876,2]
[333256828,1721995838798,-2680.12073323,0.0001088,2]
[333256830,1721995838807,-478178.88993074,0.00010881,2]
[333256832,1721995838816,-422.41934794,0.00010881,2]
[333256834,1721995838826,-2680.12073323,0.00010882,2]
[333256836,1721995838835,-195.31357051,0.00010885,2]
[333256838,1721995838844,-849.72545014,0.00010887,2]
[333256841,1721995838853,-24635.4106,0.00010888,2]
[333256843,1721995838863,-478178.88993074,0.0001089,2]
[333256845,1721995838872,-151.0,0.0001089,2]
[333256848,1721995838882,-151.0,0.0001089,2]
[333256850,1721995838892,-151.0,0.0001089,2]
[333256852,1721995838900,-271.196565,0.0001089,2]
[333256854,1721995838910,-271.196565,0.0001089,2]
[333256856,1721995838919,-151.0,0.0001089,2]
[333256858,1721995838928,-151.0,0.0001089,2]
[333256860,1721995838937,-151.0,0.0001089,2]
[333256862,1721995838946,-151.0,0.0001089,2]
[333256864,1721995838955,-151.0,0.0001089,2]
[333256866,1721995838965,-217.552599,0.0001089,2]
[333256867,1721995838974,-434.740802,0.0001089,2]
[333256869,1721995838983,-434.740802,0.0001089,2]
[333256871,1721995838993,-151.0,0.0001089,2]
[333256873,1721995839002,-1035.350616,0.0001089,2]
[333256875,1721995839012,-1035.350616,0.0001089,2]
[333256878,1721995839022,-153.921735,0.0001089,2]
[333256879,1721995839031,-153.921735,0.0001089,2]
[333256881,1721995839041,-774.668742,0.0001089,2]
[333256882,1721995839050,-774.668742,0.0001089,2]
[333256883,1721995839059,-489.877093,0.0001089,2]
[333256884,1721995839068,-489.877093,0.0001089,2]
[333256885,1721995839078,-151.0,0.0001089,2]
[333256886,1721995839087,-151.0,0.0001089,2]
[333256887,1721995839096,-151.0,0.0001089,2]
[333256888,1721995839105,-151.0,0.0001089,2]
[333256889,1721995839115,-151.0,0.0001089,2]
[333256890,1721995839124,-151.0,0.0001089,2]
[333256891,1721995839133,-151.0,0.0001089,2]
[333256892,1721995839145,-2366.883511,0.0001089,2]
[333256893,1721995839156,-151.0,0.0001089,2]
[333256894,1721995839166,-2366.883511,0.0001089,2]
[333256895,1721995839177,-151.0,0.0001089,2]
[333256896,1721995839186,-213.711598,0.0001089,2]
[333256897,1721995839195,-151.0,0.0001089,2]
[333256898,1721995839205,-213.711598,0.0001089,2]
[333256899,1721995839214,-644.773974,0.0001089,2]
[333256900,1721995839223,-644.773974,0.0001089,2]
[333256901,1721995839233,-534.206133,0.0001089,2]
[333256902,1721995839242,-151.0,0.0001089,2]
[333256903,1721995839251,-534.206133,0.0001089,2]
[333256904,1721995839260,-478.675383,0.0001089,2]
[333256905,1721995839270,-151.0,0.0001089,2]
[333256906,1721995839279,-3981.720544,0.0001089,2]
[333256907,1721995839289,-478.675383,0.0001089,2]
[333256908,1721995839298,-3981.720544,0.0001089,2]
[333256909,1721995839307,-151.0,0.0001089,2]
[333256910,1721995839317,-169.662644,0.0001089,2]
[333256911,1721995839326,-169.662644,0.0001089,2]
[333256912,1721995839337,-538.477512,0.0001089,2]
[333256913,1721995839346,-151.0,0.0001089,2]
[333256914,1721995839355,-587.329021,0.0001089,2]
[333256915,1721995839365,-538.477512,0.0001089,2]
[333256916,1721995839375,-151.0,0.0001089,2]
[333256917,1721995839385,-587.329021,0.0001089,2]
[333256918,1721995839397,-151.00045,0.0001089,2]
[333256919,1721995839408,-2752.730928,0.0001089,2]
[333256920,1721995839418,-2752.730928,0.0001089,2]
[333256921,1721995839429,-285.178924,0.0001089,2]
[333256922,1721995839439,-285.178924,0.0001089,2]
[333256923,1721995839448,-342.482006,0.0001089,2]
[333256924,1721995839457,-342.482006,0.0001089,2]
[333256925,1721995839466,-3989.998478,0.0001089,2]
[333256926,1721995839475,-506.665508,0.0001089,2]
[333256927,1721995839485,-506.665508,0.0001089,2]
[333256928,1721995839495,-3989.998478,0.0001089,2]
[333256929,1721995839505,-7410.751422,0.0001089,2]
[333256930,1721995839517,-7410.751422,0.0001089,2]
[333256931,1721995839527,-281.360519,0.0001089,2]
[333256932,1721995839538,-6859.143541,0.0001089,2]
[333256933,1721995839548,-224.012299,0.0001089,2]
[333256934,1721995839557,-6859.143541,0.0001089,2]
[333256935,1721995839567,-224.012299,0.0001089,2]
[333256936,1721995839576,-153.745928,0.0001089,2]
[333256937,1721995839586,-797.151242,0.0001089,2]
[333256938,1721995839595,-153.745928,0.0001089,2]
[333256939,1721995839605,-250.497171,0.0001089,2]
[333256940,1721995839615,-797.151242,0.0001089,2]
[333256941,1721995839626,-250.497171,0.0001089,2]
[333256942,1721995839636,-187.949806,0.0001089,2]
[333256943,1721995839648,-492.45,0.0001089,2]
[333256944,1721995839657,-492.45,0.0001089,2]
[333256945,1721995839670,-743.131752,0.0001089,2]
[333256946,1721995839679,-743.131752,0.0001089,2]
[333256947,1721995839689,-3003.659992,0.0001089,2]
[333256948,1721995839698,-3003.659992,0.0001089,2]
[333256949,1721995839707,-3716.00192,0.0001089,2]
[333256950,1721995839717,-3716.00192,0.0001089,2]
[333256951,1721995839726,-151.0,0.0001089,2]
[333256952,1721995839954,-153.550964,0.0001089,2]
[333256953,1721995839964,-151.0,0.0001089,2]
[333256954,1721995839974,-3947.026595,0.0001089,2]
[333256955,1721995839983,-478.810572,0.0001089,2]
[333256956,1721995839993,-151.0,0.0001089,2]
[333256957,1721995840002,-478.810572,0.0001089,2]
[333256958,1721995840012,-10000.0,0.0001089,2]
[333256959,1721995840023,-10000.0,0.0001089,2]
[333256960,1721995840033,-151.0,0.0001089,2]
[333256961,1721995840042,-10000.0,0.0001089,2]
[333256962,1721995840052,-151.0,0.0001089,2]
[333256963,1721995840061,-2046.055998,0.0001089,2]
[333256964,1721995840071,-10000.0,0.0001089,2]
[333256965,1721995840080,-2046.055998,0.0001089,2]
[333256966,1721995840090,-10000.0,0.0001089,2]
[333256967,1721995840099,-10000.0,0.0001089,2]
[333256968,1721995840108,-1310.24807,0.0001089,2]
[333256969,1721995840118,-1310.24807,0.0001089,2]
[333256970,1721995840127,-10000.0,0.0001089,2]
[333256971,1721995840136,-151.0,0.0001089,2]
[333256972,1721995840146,-171.336283,0.0001089,2]
[333256974,1721995840155,-324.186766,0.0001089,2]
[333256976,1721995840164,-171.336283,0.0001089,2]
[333256978,1721995840173,-324.186766,0.0001089,2]
[333256980,1721995840182,-151.0,0.0001089,2]
[333256981,1721995840191,-151.0,0.0001089,2]
[333256982,1721995840200,-2035.717519,0.0001089,2]
[333256983,1721995840210,-2035.717519,0.0001089,2]
[333256984,1721995840219,-477.35,0.0001089,2]
[333256985,1721995840228,-477.35,0.0001089,2]
[333256986,1721995840237,-3000.0,0.0001089,2]
[333256987,1721995840246,-161.946633,0.0001089,2]
[333256988,1721995840256,-151.0,0.0001089,2]
[333256989,1721995840265,-151.0,0.0001089,2]
[333256990,1721995840274,-161.946633,0.0001089,2]
[333256991,1721995840284,-3166.972693,0.0001089,2]
[333256992,1721995840293,-151.0,0.0001089,2]
[333256993,1721995840302,-3166.972693,0.0001089,2]
[333256995,1721995840313,-151.0,0.0001089,2]
[333256997,1721995840322,-285.933737,0.0001089,2]
[333256999,1721995840334,-454.7,0.0001089,2]
[333257000,1721995840345,-285.933737,0.0001089,2]
[333257001,1721995840355,-716.934841,0.0001089,2]
[333257002,1721995840364,-454.7,0.0001089,2]
[333257003,1721995840374,-716.934841,0.0001089,2]
[333257004,1721995840384,-1016.887205,0.0001089,2]
[333257005,1721995840395,-1016.887205,0.0001089,2]
[333257006,1721995840405,-155.418502,0.0001089,2]
[333257007,1721995840417,-155.418502,0.0001089,2]
[333257008,1721995840427,-663.036125,0.0001089,2]
[333257009,1721995840437,-663.036125,0.0001089,2]
[333257010,1721995840446,-878.605704,0.0001089,2]
[333257011,1721995840456,-816.038047,0.0001089,2]
[333257012,1721995840465,-878.605704,0.0001089,2]
[333257013,1721995840475,-816.038047,0.0001089,2]
[333257014,1721995840484,-240.762206,0.0001089,2]
[333257015,1721995840494,-240.762206,0.0001089,2]
[333257016,1721995840504,-188.969578,0.0001089,2]
[333257017,1721995840514,-188.969578,0.0001089,2]
[333257018,1721995840523,-151.0,0.0001089,2]
[333257019,1721995840532,-151.0,0.0001089,2]
[333257020,1721995840542,-151.0,0.0001089,2]
[333257021,1721995840551,-151.0,0.0001089,2]
[333257022,1721995840560,-5219.402968,0.0001089,2]
[333257023,1721995840569,-5219.402968,0.0001089,2]
[333257024,1721995840579,-5219.402968,0.0001089,2]
[333257025,1721995840588,-5219.402968,0.0001089,2]
[333257026,1721995840597,-151.0,0.0001089,2]
[333257027,1721995840606,-151.0,0.0001089,2]
[333257028,1721995840615,-945.93196,0.0001089,2]
[333257029,1721995840625,-945.93196,0.0001089,2]
[333257030,1721995840634,-945.93196,0.0001089,2]
[333257031,1721995840646,-945.93196,0.0001089,2]
[333257032,1721995840655,-1126.274828,0.0001089,2]
[333257033,1721995840664,-443.163332,0.0001089,2]
[333257034,1721995840674,-1126.274828,0.0001089,2]
[333257035,1721995840683,-250.255192,0.0001089,2]
[333257036,1721995840692,-1126.274828,0.0001089,2]
[333257037,1721995840701,-250.255192,0.0001089,2]
[333257038,1721995840710,-1126.274828,0.0001089,2]
[333257039,1721995840719,-443.163332,0.0001089,2]
[333257040,1721995840728,-151.0,0.0001089,2]
[333257041,1721995840738,-161.946633,0.00010897,2]
[333257042,1721995840747,-161.946633,0.00010897,2]
[333257043,1721995840756,-3166.972693,0.00010897,2]
[333257044,1721995840766,-151.0,0.00010897,2]
[333257045,1721995840776,-3166.972693,0.00010897,2]
[333257046,1721995840786,-151.0,0.00010897,2]
[333257047,1721995840795,-1016.887205,0.00010897,2]
[333257048,1721995840805,-1016.887205,0.00010897,2]
[333257049,1721995840814,-155.418502,0.00010897,2]
[333257050,1721995840823,-155.418502,0.00010897,2]
[333257051,1721995840832,-878.605704,0.00010897,2]
[333257052,1721995840842,-816.038047,0.00010897,2]
[333257053,1721995840851,-878.605704,0.00010897,2]
[333257054,1721995840860,-816.038047,0.00010897,2]
[333257055,1721995840869,-240.762206,0.00010897,2]
[333257056,1721995840878,-240.762206,0.00010897,2]
[333257057,1721995840890,-188.969578,0.00010897,2]
[333257058,1721995840901,-188.969578,0.00010897,2]
[333257059,1721995840911,-443.163332,0.00010897,2]
[333257060,1721995840922,-443.163332,0.00010897,2]
[333257061,1721995840931,-219.812459,0.00010897,2]
[333257062,1721995840941,-35344.26,0.00010897,2]
[333257063,1721995840951,-2532.2035,0.00010897,2]
[333257064,1721995840960,-500.0,0.00010899,2]
[333257065,1721995840969,-4534.84459588,0.000109,2]
[333257066,1721995840978,-7762.3759,0.000109,2]
[333257067,1721995840988,-6585.1425,0.000109,2]
[333257068,1721995840997,-4764.8295,0.000109,2]
[333257069,1721995841006,-2429.0462,0.000109,2]
[333257070,1721995841015,-1000.0,0.000109,2]
[333257071,1721995841025,-22751.5382,0.000109,2]
[333257072,1721995841035,-534.206133,0.000109,2]
[333257073,1721995841044,-534.206133,0.000109,2]
[333257074,1721995841054,-478.675383,0.000109,2]
[333257075,1721995841063,-478.675383,0.000109,2]
[333257076,1721995841072,-169.662644,0.000109,2]
[333257077,1721995841082,-169.662644,0.000109,2]